bitfinex/quotes_ETHUSD_20260209
["timestamp","ask_amount","ask_price","bid_price","bid_amount"]
[1770645391323,0.002,2029.5,2029.0,3.97841143]
[1770645392470,1.23151649,2030.1,2029.1,3.97841143]
[1770645392650,1.04552131,2030.0,2029.4,1.23189119]
[1770645392948,1.23148727,2030.1,2029.4,1.23189119]
[1770645393252,1.04552984,2030.0,2029.4,5.21030262]
[1770645393452,1.23145077,2030.2,2029.4,1.23189119]
[1770645393743,6.23052571,2030.3,2029.4,5.21030262]
[1770645393744,1.04555844,2030.1,2029.4,5.21030262]
[1770645393943,1.23137037,2030.3,2029.4,5.21030262]
[1770645394242,1.0456693,2030.2,2029.4,5.21030262]
[1770645394461,1.23130621,2030.4,2029.5,4.05193363]
[1770645394767,1.04585275,2030.3,2029.6,1.2317698]
[1770645394923,1.23128647,2030.4,2029.6,1.2317698]
[1770645395225,1.04591986,2030.3,2029.6,1.2317698]
[1770645395428,1.23128647,2030.4,2029.6,1.2317698]
[1770645395640,1.04575241,2030.3,2029.6,1.2317698]
[1770645395840,1.23128647,2030.4,2029.6,1.2317698]
[1770645396047,1.04577657,2030.3,2029.6,1.2317698]
[1770645396256,1.23128647,2030.4,2029.6,1.2317698]
[1770645396457,1.04561383,2030.3,2029.6,1.2317698]
[1770645396662,1.23128647,2030.4,2029.5,1.23178699]
[1770645396663,5.200216,2030.4,2029.5,1.23178699]
[1770645396868,1.04593513,2030.3,2029.3,4.92778992]
[1770645397037,5.200216,2030.4,2029.3,4.92778992]
[1770645397237,1.04590588,2030.3,2029.3,8.90620135]
[1770645397465,5.200216,2030.4,2029.3,8.90620135]
[1770645397668,5.200216,2030.4,2029.2,4.6739519]
[1770645397669,3.96892953,2030.2,2029.2,4.6739519]
[1770645397847,1.0453775,2030.1,2029.2,4.6739519]
[1770645398178,1.0453775,2030.0,2029.2,4.6739519]
[1770645398378,3.96892953,2030.1,2029.2,4.6739519]
[1770645398558,5.01354633,2030.0,2029.2,3.442]
[1770645398743,1.23158776,2029.9,2029.2,4.67398343]
[1770645400970,1.04477739,2029.8,2029.2,4.67398343]
[1770645401155,1.23158776,2029.9,2029.2,4.67398343]
[1770645401355,1.04515739,2029.8,2029.2,3.442]
[1770645401554,1.23158776,2029.9,2029.2,4.6740082]
[1770645401755,1.0451505,2029.8,2029.2,4.6740082]
[1770645401952,1.23158776,2029.9,2029.2,4.6740082]
[1770645402141,1.04549579,2029.8,2029.2,4.6740082]
[1770645402490,1.23158776,2029.9,2029.2,4.67400612]
[1770645402676,1.0457772,2029.8,2029.2,4.6740126]
[1770645402853,1.23158776,2029.9,2029.2,4.6740126]
[1770645403050,1.04614291,2029.8,2029.2,4.6740126]
[1770645403375,1.23158776,2029.9,2029.2,3.442]
[1770645403548,1.04622234,2029.8,2029.2,4.6740046]
[1770645403748,1.23158776,2029.9,2029.2,3.442]
[1770645403955,3.96892953,2029.7,2028.9,1.23214367]
[1770645404164,1.04599996,2029.6,2028.9,1.23214367]
[1770645404955,1.2318305,2029.5,2029.4,0.001]
[1770645407094,1.2317698,2029.7,2029.4,0.001]
[1770645407256,1.04639401,2029.6,2029.4,0.001]
[1770645407459,1.2317698,2029.7,2029.4,0.001]
[1770645407658,1.04627969,2029.6,2029.4,0.001]
[1770645407859,1.2317698,2029.7,2029.4,0.001]
[1770645408057,1.04619874,2029.6,2029.4,0.001]
[1770645408353,1.2317698,2029.7,2029.4,0.001]
[1770645408590,1.04617713,2029.6,2029.4,0.001]
[1770645408885,1.2317698,2029.7,2029.4,0.001]
[1770645409089,1.04569481,2029.6,2029.4,0.001]
[1770645409292,1.2317698,2029.7,2029.4,0.001]
[1770645409495,1.04573532,2029.6,2029.4,0.001]
[1770645409787,1.2317698,2029.7,2029.4,0.001]
[1770645409990,1.04573133,2029.6,2029.4,0.001]
[1770645410194,1.2317698,2029.7,2029.4,0.001]
[1770645410558,1.23169293,2029.8,2029.4,0.001]
[1770645410759,1.04602088,2029.7,2029.4,0.001]
[1770645410958,1.23158821,2029.9,2029.4,0.001]
[1770645411188,1.04608081,2029.8,2029.4,0.001]
[1770645411398,6.2312434,2030.0,2029.4,1.23289119]
[1770645411566,1.04625962,2029.9,2029.4,1.23289119]
[1770645411762,1.04625962,2029.8,2029.4,5.20974693]
[1770645412089,1.23152709,2030.1,2029.4,5.20974693]
[1770645412295,1.04631819,2030.0,2029.4,5.20974693]
[1770645412470,1.04631819,2029.9,2029.4,5.20974693]
[1770645412671,6.68462589,2030.1,2028.9,9.16085574]
[1770645412899,1.30503263,2029.8,2029.0,1.23213356]
[1770645413076,1.04655174,2029.7,2028.8,3.97785574]
[1770645413278,1.04655174,2029.6,2028.9,1.23219084]
[1770645413478,1.2318305,2029.5,2028.9,1.23219084]
[1770645413683,1.2318305,2029.5,2028.8,5.21007314]
[1770645414406,1.23182024,2029.6,2028.8,5.21007314]
[1770645414566,1.04656348,2029.5,2028.9,3.97685574]
[1770645414767,1.04651897,2029.4,2028.9,3.97685574]
[1770645414985,1.23182024,2029.6,2028.9,3.97685574]
[1770645415266,1.04656557,2029.5,2028.8,0.001]
[1770645415466,5.3801395,2029.1,2028.6,0.001]
[1770645415667,6.49938418,2029.0,2028.6,0.001]
[1770645415882,2.35131801,2028.9,2028.4,0.001]
[1770645416093,2.35131801,2028.8,2028.4,0.001]
[1770645416279,1.04628538,2028.7,2027.9,5.20965345]
[1770645416470,1.04628538,2028.6,2027.9,5.20965345]
[1770645416669,1.30503263,2028.9,2027.9,5.20965345]
[1770645416994,1.04475207,2028.8,2027.9,5.20965423]
[1770645417204,6.49785087,2028.9,2027.9,3.97685574]
[1770645417373,4.14806617,2028.7,2027.7,0.001]
[1770645417578,4.14806617,2028.4,2027.7,0.001]
[1770645417884,1.04475207,2028.3,2027.7,0.001]
[1770645418063,4.14806617,2028.4,2027.7,0.001]
[1770645418265,2.53740963,2028.6,2027.7,0.001]
[1770645418472,1.04216091,2028.5,2027.8,3.97685574]
[1770645418677,1.23234193,2028.7,2027.9,3.97685574]
[1770645419496,1.23234193,2028.7,2028.0,0.001]
[1770645419797,4.9287883,2028.9,2028.0,1.23374161]
[1770645420028,5.19048334,2028.8,2028.0,0.001]
[1770645420176,5.19048334,2028.7,2028.0,0.001]
[1770645420376,4.14806617,2028.7,2028.0,0.001]
[1770645420901,1.04189964,2028.6,2028.0,0.001]
[1770645421089,4.14806617,2028.7,2028.0,0.001]
[1770645421300,6.23382093,2028.9,2028.0,0.001]
[1770645421516,1.0412034,2028.8,2028.0,4.05137794]
[1770645421811,4.9287883,2028.9,2028.0,4.05137794]
[1770645422005,4.9287883,2028.9,2028.0,5.28405959]
[1770645422504,4.9287883,2028.9,2028.1,3.97685574]
[1770645424209,4.14806617,2029.0,2028.0,0.001]
[1770645424378,4.14806617,2028.8,2028.0,0.001]
[1770645426214,1.23231626,2028.7,2028.0,0.001]
[1770645429116,1.23231626,2028.7,2027.8,1.21118942]
[1770645429310,1.23231626,2028.7,2027.9,3.97685574]
[1770645429505,1.23231626,2028.7,2027.8,1.21118942]
[1770645429817,1.23231626,2028.7,2027.9,3.97685574]
[1770645430891,4.92877914,2029.1,2028.2,0.001]
[1770645431108,1.04173603,2029.0,2028.2,0.001]
[1770645431308,1.04173603,2028.9,2028.2,0.001]
[1770645431509,4.92877914,2029.1,2028.2,0.001]
[1770645431820,1.04185919,2029.0,2028.2,0.001]
[1770645432020,1.04185919,2028.9,2028.2,0.001]
[1770645432315,6.23381177,2029.1,2028.2,0.001]
[1770645432521,1.0420389,2029.0,2028.2,0.001]
[1770645432822,1.0420389,2028.9,2028.2,0.001]
[1770645433023,10.38187794,2029.1,2028.2,0.001]
[1770645433195,1.0419669,2029.0,2028.2,0.001]
[1770645433397,1.0419669,2028.9,2028.2,0.001]
[1770645433721,9.07684531,2029.1,2028.2,0.001]
[1770645433925,1.04219346,2029.0,2028.2,0.001]
[1770645434102,1.04219346,2028.9,2028.2,0.001]
[1770645434296,9.07684531,2029.1,2028.2,0.001]
[1770645434498,1.04232561,2029.0,2028.2,0.001]
[1770645434811,1.04232561,2028.9,2028.2,0.001]
[1770645435123,9.07684531,2029.1,2028.2,0.001]
[1770645435326,1.23219478,2028.9,2028.2,0.001]
[1770645436100,1.23219478,2028.9,2028.2,3.95451969]
[1770645436300,9.07684531,2029.1,2028.2,3.95451969]
[1770645436301,4.92841256,2029.1,2028.2,3.95451969]
[1770645437328,4.92780761,2029.4,2028.6,3.95351969]
[1770645438238,1.2317698,2029.6,2028.6,3.95351969]
[1770645438525,1.04328465,2029.5,2028.6,3.95351969]
[1770645438832,1.2317698,2029.6,2028.6,3.95351969]
[1770645439024,5.25264569,2029.6,2028.6,3.95351969]
[1770645439199,1.04306516,2029.5,2028.6,3.95351969]
[1770645439527,5.25264569,2029.6,2028.7,5.27580259]
[1770645439528,1.2317698,2029.6,2028.7,5.27580259]
[1770645440404,5.25264569,2029.6,2028.7,1.23231626]
[1770645440601,4.02087589,2029.4,2028.6,1.23234176]
[1770645441130,1.2317698,2029.6,2028.6,5.27582809]
[1770645441357,1.04379066,2029.5,2028.7,4.04348633]
[1770645441505,1.2317698,2029.6,2028.8,1.23225552]
[1770645441705,1.04372009,2029.5,2028.8,1.23225552]
[1770645442004,1.2317698,2029.6,2028.8,1.23225552]
[1770645442231,1.04347599,2029.5,2028.8,1.23225552]
[1770645442422,1.2317698,2029.6,2028.8,1.23225552]
[1770645442621,1.04415385,2029.5,2028.8,1.23225552]
[1770645442803,1.2317698,2029.6,2028.8,1.23225552]
[1770645443006,0.002,2029.3,2028.8,1.23225552]
[1770645443839,0.002,2029.3,2028.8,5.27574185]
[1770645446735,0.002,2029.3,2028.9,4.04348633]
[1770645447209,0.002,2029.3,2028.8,1.23225552]
[1770645447604,0.002,2029.3,2028.8,5.27574185]
[1770645448712,0.002,2029.3,2028.8,1.23225552]
[1770645450534,0.002,2029.3,2028.9,4.04348633]
[1770645451926,0.002,2029.5,2029.0,4.04348633]
[1770645452422,0.002,2029.5,2029.1,1.23207333]
[1770645452627,0.002,2029.5,2029.1,5.27555966]
[1770645453918,4.92504886,2030.5,2029.6,4.04348633]
[1770645454118,4.92504886,2030.5,2029.6,7.48648633]
[1770645454345,4.02087589,2030.4,2029.3,4.04348633]
[1770645454524,4.02087589,2030.2,2029.3,3.443]
[1770645455252,1.23134512,2030.3,2029.3,7.48648633]
[1770645455911,1.30503263,2030.6,2029.3,7.48648633]
[1770645455912,1.30503263,2030.6,2029.4,4.04348633]
[1770645456112,1.23118245,2030.6,2029.7,0.0735222]
[1770645456355,4.02087589,2030.5,2029.5,4.04348633]
[1770645456577,4.02087589,2030.3,2029.4,1.23189119]
[1770645457336,4.02087589,2030.1,2029.1,1.23206887]
[1770645457562,4.02087589,2030.1,2029.2,1.23198148]
[1770645457860,1.04303497,2030.0,2029.2,1.23198148]
[1770645458163,4.02087589,2030.0,2029.2,1.23198148]
[1770645459027,5.25228166,2030.2,2029.1,9.04526693]
[1770645459228,1.04342968,2030.1,2029.1,9.04526693]
[1770645459448,5.06430557,2030.1,2029.1,9.04526693]
[1770645459625,4.02087589,2030.0,2029.1,9.04526693]
[1770645460425,4.02087589,2030.1,2029.1,4.9282584]
[1770645461040,1.23152709,2030.0,2029.1,4.9282584]
[1770645462863,5.25240298,2030.0,2029.1,1.23207333]
[1770645463064,5.252585,2029.7,2028.9,1.23219478]
[1770645463667,5.252585,2029.7,2028.8,4.67420655]
[1770645464265,5.06507754,2029.6,2028.8,3.442]
[1770645464559,4.02087589,2029.6,2028.8,4.67425441]
[1770645465082,1.2318305,2029.5,2028.8,4.67425441]
[1770645466540,6.67852652,2029.9,2028.9,4.07442946]
[1770645466541,2.53592032,2029.9,2028.9,4.07442946]
[1770645466863,1.23163322,2029.9,2029.1,4.14795166]
[1770645467165,4.92625006,2030.0,2029.2,1.23201261]
[1770645467166,1.04518567,2029.8,2029.2,1.23201261]
[1770645467363,8.80079538,2030.0,2029.1,1.2320407]
[1770645467536,1.04544739,2029.9,2029.1,1.2320407]
[1770645467738,4.91999271,2029.8,2029.1,1.2320407]
[1770645467938,3.87454532,2029.8,2029.1,1.23206791]
[1770645469472,1.23170911,2029.7,2029.0,4.92951592]
[1770645470845,1.23170911,2029.7,2029.0,9.00394538]
[1770645471145,1.23158776,2029.9,2029.1,4.07442946]
[1770645471370,1.04524619,2029.8,2029.1,4.07442946]
[1770645471578,4.92622239,2030.0,2029.2,5.30644207]
[1770645471774,1.04524473,2029.9,2029.2,5.30644207]
[1770645471960,1.04524473,2029.8,2029.2,5.30644207]
[1770645472301,6.67731496,2030.2,2029.5,4.07442946]
[1770645472302,1.3042871,2030.2,2029.5,4.07442946]
[1770645472445,1.23137195,2030.3,2029.5,7.51642946]
[1770645472647,4.91981181,2030.2,2029.5,3.442]
[1770645472870,3.87454532,2030.2,2029.5,3.442]
[1770645473094,1.23333187,2030.4,2029.6,4.07442946]
[1770645473551,0.002,2030.4,2029.7,1.23170911]
[1770645474877,3.87454532,2030.2,2029.1,7.90442946]
[1770645475064,3.87454532,2030.0,2029.2,1.23197573]
[1770645475267,1.04478567,2029.9,2029.2,1.23197131]
[1770645475572,3.87454532,2030.0,2029.3,1.23194471]
[1770645475773,1.23164843,2029.8,2029.1,4.92818106]
[1770645479287,4.92639213,2029.9,2029.1,4.92818106]
[1770645479681,3.87454532,2029.8,2029.0,0.001]
[1770645479986,4.91965065,2029.7,2029.0,1.23312069]
[1770645480288,3.87454532,2029.7,2029.0,0.001]
[1770645480474,3.87454532,2029.5,2029.0,0.001]
[1770645480675,1.04500416,2029.4,2029.0,1.23311891]
[1770645480880,5.17883242,2029.8,2029.0,0.001]
[1770645481059,4.91942268,2029.7,2029.0,0.001]
[1770645481260,1.04487736,2029.6,2029.0,0.001]
[1770645481460,1.04487736,2029.5,2029.0,4.07542946]
[1770645481661,1.23175966,2029.7,2029.3,0.001]
[1770645482669,1.3042871,2029.9,2029.3,0.001]
[1770645482877,2.27678018,2029.8,2029.3,0.001]
[1770645483075,1.04507982,2029.7,2029.3,0.001]
[1770645483897,1.23176893,2029.7,2029.3,0.001]
[1770645484710,5.10631425,2029.7,2029.3,0.001]
[1770645484862,1.23170176,2029.8,2029.3,0.001]
[1770645485068,1.04534307,2029.7,2029.3,0.001]
[1770645485270,1.23162571,2029.9,2029.3,0.001]
[1770645485605,1.04547087,2029.8,2029.3,0.001]
[1770645485768,1.23162571,2029.9,2029.3,0.001]
[1770645485969,2.27715294,2029.8,2029.3,1.2329519]
[1770645486169,1.04592588,2029.7,2029.3,1.2329519]
[1770645486398,1.23168462,2029.8,2029.3,1.2329519]
[1770645486601,1.04593333,2029.7,2029.3,1.2329519]
[1770645486781,1.23168462,2029.8,2029.3,1.2329519]
[1770645487078,1.04597731,2029.7,2029.3,1.2329519]
[1770645487278,1.23168462,2029.8,2029.3,1.2329519]
[1770645487478,1.04632153,2029.7,2029.3,1.2329519]
[1770645487699,1.23168462,2029.8,2029.3,1.2329519]
[1770645487904,1.04656687,2029.7,2029.3,1.2329519]
[1770645488084,1.23168462,2029.8,2029.3,1.2329519]
[1770645488276,1.04679395,2029.7,2029.3,1.2329519]
[1770645488480,1.23168462,2029.8,2029.3,1.2329519]
[1770645488690,1.0468203,2029.7,2029.3,1.2329519]
[1770645488984,1.23168462,2029.8,2029.3,0.001]
[1770645489184,1.04700373,2029.7,2029.3,0.001]
[1770645489386,4.9264271,2029.9,2029.3,0.001]
[1770645489703,1.04713589,2029.8,2029.3,0.001]
[1770645490000,1.04713589,2029.7,2029.3,0.001]
[1770645490202,4.9264271,2029.9,2029.2,5.25739434]
[1770645490402,1.04712707,2029.8,2029.2,5.25739434]
[1770645490702,1.04712707,2029.7,2029.2,5.25739434]
[1770645490871,4.9264271,2029.9,2029.2,5.25739434]
[1770645491070,1.04702616,2029.8,2029.2,5.25739434]
[1770645491284,4.9264271,2029.9,2029.2,5.25739434]
[1770645491482,2.2786873,2029.8,2029.3,4.07442946]
[1770645491775,1.23165313,2029.8,2029.3,4.07442946]
[1770645492275,1.3042871,2029.5,2028.8,0.001]
[1770645492474,5.17883242,2029.1,2028.2,1.23359025]
[1770645492706,1.04704103,2029.0,2028.2,1.23359025]
[1770645493002,1.04704103,2028.9,2028.2,1.23359025]
[1770645493178,5.17883242,2029.1,2028.2,1.23359025]
[1770645493381,1.23219478,2028.9,2028.2,1.23359025]
[1770645493702,1.04547332,2028.8,2028.2,1.23359025]
[1770645494003,1.23219478,2028.9,2028.2,1.23359025]
[1770645494004,1.23218278,2029.0,2028.3,4.07442946]
[1770645494383,1.04522406,2028.9,2028.3,4.07442946]
[1770645494583,1.23218278,2029.0,2028.3,4.07442946]
[1770645494996,1.04518493,2028.9,2028.2,1.23359025]
[1770645495205,5.1067281,2029.0,2028.2,0.001]
[1770645495377,1.23225552,2028.8,2028.4,0.001]
[1770645497373,9.05820043,2028.9,2028.4,0.001]
[1770645497611,4.12917835,2028.7,2028.2,0.001]
[1770645499082,8.92619936,2028.9,2028.2,0.001]
[1770645499311,1.04214169,2028.8,2028.2,0.001]
[1770645499510,8.92619936,2028.9,2028.2,0.001]
[1770645499714,1.04145434,2028.8,2028.2,0.001]
[1770645500004,8.92619936,2028.9,2028.2,0.001]
[1770645500184,4.92902208,2028.9,2028.2,0.001]
[1770645501377,1.23219478,2029.0,2028.2,0.001]
[1770645501595,5.03780183,2028.9,2028.2,0.001]
[1770645501803,3.99717728,2028.9,2028.2,0.001]
[1770645502399,1.23219478,2029.0,2028.2,0.001]
[1770645502633,1.04033201,2028.9,2028.2,0.001]
[1770645502808,1.23219478,2029.0,2028.2,0.001]
[1770645502997,1.0403362,2028.9,2028.2,0.001]
[1770645503316,1.23219478,2029.0,2028.2,0.001]
[1770645503520,1.23225552,2028.8,2028.2,0.001]
[1770645504433,3.99717728,2028.7,2028.2,0.001]
[1770645506302,1.232377,2028.6,2028.2,0.001]
[1770645507300,3.99717728,2028.5,2028.2,0.001]
[1770645507811,3.99717728,2028.5,2028.4,0.001]
[1770645508012,5.03603333,2028.5,2028.4,0.001]
[1770645508311,1.23249852,2028.4,2028.0,0.001]
[1770645510428,4.92999408,2028.5,2028.0,0.001]
[1770645511705,3.99717728,2028.4,2028.0,0.001]
[1770645512729,1.23255928,2028.3,2028.0,0.001]
[1770645513814,5.22973656,2028.3,2027.8,0.001]
[1770645514131,3.99717728,2028.2,2027.8,0.001]
[1770645514831,1.23268083,2028.1,2027.8,0.001]
[1770645515232,5.22985811,2028.1,2027.8,0.001]
[1770645516229,3.99717728,2028.0,2027.0,4.12540938]
[1770645516448,4.67668083,2028.1,2027.3,4.12540938]
[1770645517115,1.23268083,2028.1,2027.4,4.12540938]
[1770645518643,3.99717728,2027.4,2026.0,4.12540938]
[1770645518809,1.23328893,2027.1,2026.0,4.12540938]
[1770645519004,1.03852846,2027.0,2026.0,4.12540938]
[1770645519243,1.23328893,2027.1,2026.0,4.12540938]
[1770645519419,1.03728511,2027.0,2026.0,4.12540938]
[1770645519612,1.23328893,2027.1,2026.0,4.12540938]
[1770645519817,1.03770367,2027.0,2026.0,4.12540938]
[1770645520036,3.99717728,2027.0,2026.0,4.12540938]
[1770645520263,1.23328893,2027.1,2026.0,4.12540938]
[1770645520956,8.93033301,2027.2,2026.1,1.23389763]
[1770645521137,1.03721728,2027.1,2026.1,1.23389763]
[1770645521337,8.93033301,2027.2,2026.1,1.23389763]
[1770645521651,1.03703309,2027.1,2026.4,0.001]
[1770645521849,8.93033301,2027.2,2026.4,0.001]
[1770645522051,1.03697276,2027.1,2026.4,0.001]
[1770645522247,1.03703264,2027.0,2026.4,0.001]
[1770645522427,8.93033301,2027.2,2026.4,0.001]
[1770645522854,1.23334977,2027.0,2026.4,0.001]
[1770645523336,3.99717728,2026.9,2026.4,0.001]
[1770645525034,1.23347148,2026.8,2026.4,0.001]
[1770645525243,4.24662775,2026.7,2025.8,1.23408036]
[1770645526969,1.23359321,2026.6,2025.8,4.02227378]
[1770645527149,6.23000549,2027.1,2026.1,4.02227378]
[1770645527150,1.23334977,2027.1,2026.1,4.02227378]
[1770645528966,1.23334977,2027.1,2026.2,1.23383673]
[1770645529146,5.47997752,2027.1,2026.2,1.23383673]
[1770645529567,5.28057818,2027.0,2026.0,1.2339369]
[1770645529770,4.24662775,2027.0,2026.0,1.2339369]
[1770645530070,5.27964597,2026.9,2026.0,1.23392288]
[1770645530270,4.24662775,2026.9,2026.0,1.23392288]
[1770645530441,4.24662775,2026.9,2025.9,1.23396838]
[1770645530643,4.24662775,2026.9,2026.0,1.23393679]
[1770645531041,1.23347148,2026.8,2025.9,1.23399313]
[1770645531252,1.23347148,2026.8,2026.0,4.02227378]
[1770645532787,4.24662775,2026.7,2025.9,1.23399313]
[1770645532945,4.24662775,2026.7,2025.6,8.95900477]
[1770645532946,4.24662775,2026.2,2024.5,4.02227378]
[1770645533145,14.90525333,2026.6,2025.4,5.2710928]
[1770645533146,0.0813,2026.0,2025.4,5.2710928]
[1770645533350,0.0813,2026.0,2025.4,5.27113366]
[1770645533586,0.0813,2026.0,2025.4,0.01453999]
[1770645534254,0.0813,2026.0,2025.4,1.24885851]
[1770645534462,0.0813,2026.0,2025.4,1.19885851]
[1770645534688,0.0813,2026.0,2025.3,1.23433861]
[1770645534846,0.02572,2025.4,2025.3,1.23433861]
[1770645535047,0.0813,2026.0,2025.2,8.96004773]
[1770645535048,1.23401944,2025.9,2025.2,5.25667848]
[1770645535464,1.23401944,2025.9,2025.2,4.02227378]
[1770645535677,1.23401944,2025.9,2025.2,1.23444103]
[1770645536074,1.23401944,2025.9,2025.1,0.001]
[1770645536253,1.23401944,2025.9,2025.1,1.23549556]
[1770645536453,1.23401944,2025.9,2024.3,11.38573113]
[1770645536454,4.24662775,2025.6,2024.3,4.02227378]
[1770645536685,1.23401944,2025.9,2024.8,1.23465627]
[1770645536686,5.48064719,2025.9,2024.8,1.23465627]
[1770645536870,5.48064719,2025.9,2024.7,4.02227378]
[1770645537057,4.24662775,2025.8,2024.7,4.02227378]
[1770645537261,4.24662775,2025.6,2024.4,4.02227378]
[1770645537760,1.23414128,2025.7,2024.3,3.447]
[1770645537761,4.24662775,2025.5,2024.3,3.447]
[1770645538651,4.24662775,2025.5,2024.3,7.46927378]
[1770645538849,4.24662775,2025.5,2024.3,8.70423898]
[1770645539051,1.23414128,2025.7,2024.4,4.02227378]
[1770645539274,1.23414128,2025.7,2024.4,3.97227378]
[1770645539446,0.0735222,2025.6,2024.4,3.97227378]
[1770645539649,4.32014995,2025.6,2024.3,3.447]
[1770645540260,4.24662775,2025.6,2024.3,7.46927378]
[1770645540467,1.23414128,2025.7,2024.5,4.02227378]
[1770645540862,1.23414128,2025.7,2024.3,8.38693524]
[1770645540863,4.24662775,2025.6,2024.3,4.02227378]
[1770645541264,1.23426314,2025.5,2024.3,4.02227378]
[1770645541577,9.18319288,2025.9,2024.3,4.02227378]
[1770645541578,1.23389763,2026.1,2024.9,4.02227378]
[1770645541891,1.23389763,2026.1,2025.0,7.47027378]
[1770645542472,1.23389763,2026.1,2025.1,4.02227378]
[1770645542666,5.27694588,2026.0,2024.4,4.02227378]
[1770645542890,4.32014995,2025.8,2024.6,3.448]
[1770645543271,5.48076903,2025.7,2024.6,3.448]
[1770645543697,0.0735222,2025.5,2024.6,3.448]
[1770645544005,4.24662775,2025.5,2024.4,3.448]
[1770645545075,4.24662775,2025.5,2024.4,4.68291552]
[1770645545291,1.23432408,2025.4,2024.4,3.448]
[1770645545898,1.23432408,2025.4,2024.4,8.70516657]
[1770645546111,1.23432408,2025.4,2024.8,0.001]
[1770645547171,4.93729633,2025.5,2024.8,0.001]
[1770645547802,1.23414128,2025.7,2024.8,4.02327378]
[1770645548196,1.23395853,2026.0,2024.8,4.02327378]
[1770645548502,4.93559054,2026.2,2025.0,4.02227378]
[1770645549372,1.23371496,2026.4,2025.2,4.02227378]
[1770645549577,1.23371496,2026.4,2025.4,4.02227378]
[1770645550301,5.99571174,2026.5,2025.6,4.02227378]
[1770645550302,1.06108705,2026.5,2025.6,4.02227378]
[1770645550485,1.23560657,2026.6,2025.8,4.02227378]
[1770645550685,0.002,2026.6,2025.8,4.02227378]
[1770645551505,0.002,2026.6,2025.9,5.25629322]
[1770645552208,0.002,2026.6,2025.8,1.23403917]
[1770645553401,0.002,2026.6,2025.9,3.449]
[1770645553604,0.002,2026.6,2025.6,1.23416941]
[1770645553778,0.002,2026.6,2025.3,4.93752675]
[1770645553779,4.24662775,2026.4,2025.3,1.23434541]
[1770645553973,1.03555031,2026.3,2025.4,3.448]
[1770645554202,4.24662775,2026.4,2025.4,3.448]
[1770645554433,1.03568101,2026.3,2025.4,3.448]
[1770645554598,5.28227452,2026.2,2025.1,1.23445738]
[1770645554911,1.0355894,2026.1,2025.5,3.448]
[1770645555115,4.24662775,2026.1,2025.2,3.448]
[1770645555317,4.19738313,2025.9,2025.2,3.448]
[1770645555483,4.19738313,2025.9,2024.8,0.001]
[1770645555484,1.23408036,2025.8,2024.8,0.001]
[1770645555684,5.43146349,2025.8,2024.8,3.449]
[1770645556405,5.43146349,2025.8,2024.9,3.448]
[1770645557512,1.03634181,2025.7,2024.9,3.448]
[1770645557715,5.43146349,2025.8,2024.9,3.448]
[1770645557919,1.03631146,2025.7,2024.9,3.448]
[1770645558116,1.23408036,2025.8,2024.9,3.448]
[1770645558319,1.03664393,2025.7,2024.9,3.448]
[1770645558487,1.23408036,2025.8,2024.9,3.448]
[1770645559321,1.03714398,2025.7,2024.9,3.448]
[1770645559487,1.23408036,2025.8,2024.9,3.448]
[1770645559800,1.23420221,2025.6,2024.9,4.68262884]
[1770645560987,1.23420221,2025.6,2025.0,4.22589726]
[1770645561614,1.23395853,2026.0,2025.0,5.46041974]
[1770645561826,1.03751939,2025.9,2024.9,4.68258023]
[1770645562117,1.03751939,2025.8,2025.0,1.23456481]
[1770645562290,2.53056491,2026.0,2025.0,1.23456481]
[1770645562489,1.03805995,2025.9,2025.0,1.23456481]
[1770645562712,1.03805995,2025.8,2025.0,1.23456481]
[1770645562911,2.53056491,2026.0,2024.9,4.68257857]
[1770645563208,1.03805484,2025.9,2025.0,1.2345546]
[1770645563416,1.03805484,2025.8,2024.9,4.68258002]
[1770645563598,2.53056491,2026.0,2024.9,4.68258002]
[1770645563785,1.03799608,2025.9,2025.0,1.23456191]
[1770645563990,1.03799608,2025.8,2024.9,4.68258484]
[1770645564304,1.03799608,2025.7,2024.9,4.68258484]
[1770645564488,4.12297191,2025.9,2024.9,4.68258484]
[1770645564689,1.03805823,2025.8,2024.9,8.9084821]
[1770645564991,1.03805823,2025.7,2024.9,8.9084821]
[1770645565190,2.53056491,2026.0,2024.9,8.9084821]
[1770645565416,1.03816564,2025.9,2024.9,8.9084821]
[1770645565618,1.03816564,2025.8,2024.9,8.9084821]
[1770645565819,1.03816564,2025.7,2025.0,4.22589726]
[1770645566199,1.23408036,2025.8,2025.0,4.22589726]
[1770645567616,1.23400405,2026.0,2025.0,4.22589726]
[1770645567827,1.23408036,2025.8,2025.1,1.23450693]
[1770645569206,1.23408036,2025.8,2025.0,5.46041434]
[1770645569400,5.16205867,2025.7,2024.8,4.93961204]
[1770645569608,1.23408036,2025.8,2024.9,4.68358367]
[1770645569922,1.23420221,2025.6,2024.9,4.68357856]
[1770645570123,4.93640359,2025.8,2025.0,4.22589726]
[1770645570707,1.23408036,2025.9,2025.0,4.22589726]
[1770645570915,1.03940409,2025.8,2025.0,4.22589726]
[1770645571119,1.23408036,2025.9,2025.0,4.22589726]
[1770645571338,1.03946099,2025.8,2025.0,4.22589726]
[1770645571503,1.23408036,2025.9,2025.0,4.22589726]
[1770645571821,1.03953868,2025.8,2025.0,4.22589726]
[1770645572127,1.23408036,2025.9,2025.1,1.23450693]
[1770645572325,1.03942327,2025.8,2025.1,1.23450693]
[1770645572515,1.23394211,2026.1,2025.2,4.22689726]
[1770645572698,0.002,2025.6,2025.2,4.22689726]
[1770645572902,1.23389055,2026.2,2025.2,4.22689726]
[1770645573136,4.12297191,2026.0,2025.2,0.001]
[1770645573630,4.12297191,2025.8,2025.2,0.001]
[1770645574006,2.27377584,2025.7,2025.2,0.001]
[1770645574206,5.3570946,2025.8,2025.2,0.001]
[1770645574405,1.23412269,2025.8,2025.2,0.001]
[1770645575521,1.04037915,2025.7,2025.2,0.001]
[1770645575721,1.23412269,2025.8,2025.2,0.001]
[1770645575918,4.12297191,2025.6,2025.1,3.41384425]
[1770645576116,2.27451077,2025.5,2025.1,3.41384425]
[1770645576410,2.27451077,2025.5,2025.0,0.001]
[1770645576411,1.23426314,2025.5,2025.0,0.001]
[1770645577237,4.12297191,2025.4,2025.0,0.001]
[1770645578025,4.12297191,2025.4,2024.3,4.22589726]
[1770645578026,4.12297191,2025.2,2024.1,1.23507321]
[1770645578222,1.04047383,2025.1,2024.2,1.2350477]
[1770645578427,1.04047383,2025.0,2024.2,1.2350477]
[1770645578633,4.12297191,2025.2,2024.2,1.2350477]
[1770645578840,1.03979452,2025.1,2024.3,1.23498262]